bitfinex/quotes_ETHUSD_20260302
["timestamp","ask_amount","ask_price","bid_price","bid_amount"]
[1772410557583,2.50908814,1942.1,1941.3,1.597]
[1772410557790,2.50908814,1942.1,1941.2,3.64212102]
[1772410557989,2.50908814,1942.1,1941.3,1.597]
[1772410558217,2.50908814,1942.1,1941.3,3.95125785]
[1772410558583,2.46006381,1942.2,1941.4,1.2877305]
[1772410558787,5.29226284,1942.3,1941.5,2.35425785]
[1772410559416,2.50908814,1942.2,1941.5,1.596]
[1772410559589,4.96915195,1942.2,1941.5,1.596]
[1772410560305,2.50908814,1942.1,1941.4,1.2877305]
[1772410560501,2.50908814,1942.1,1941.1,0.0011]
[1772410560502,2.50908814,1942.1,1941.1,3.64323819]
[1772410560708,1.28733264,1942.0,1941.1,3.64323819]
[1772410560908,3.79642078,1942.0,1941.1,3.64323819]
[1772410561289,2.50908814,1941.9,1941.1,1.28898034]
[1772410561522,2.50908814,1941.9,1941.1,2.88498034]
[1772410561727,3.07921384,1941.8,1941.1,1.28898034]
[1772410562086,5.58830198,1941.8,1941.1,1.28898034]
[1772410562289,3.07921384,1941.7,1941.1,5.23923819]
[1772410562597,1.28733264,1942.0,1941.2,2.35425785]
[1772410562800,4.36656846,1941.9,1941.3,1.28779683]
[1772410563004,3.07916704,1941.8,1941.1,2.88498602]
[1772410563204,3.07916704,1941.7,1941.1,2.88498602]
[1772410563420,3.79648956,1941.9,1941.1,2.88498602]
[1772410563606,3.07934473,1941.8,1941.1,2.88498602]
[1772410563918,3.07934473,1941.7,1941.1,2.88498602]
[1772410564120,3.79648813,1941.9,1941.1,2.88498602]
[1772410564121,3.79648813,1941.9,1941.1,1.28898602]
[1772410564290,3.79648813,1941.9,1941.2,1.596]
[1772410564291,3.07943675,1941.8,1941.2,1.596]
[1772410564500,3.07943675,1941.7,1941.2,1.596]
[1772410564697,3.79648813,1941.9,1941.2,1.596]
[1772410564698,2.50908814,1941.8,1941.2,1.596]
[1772410564899,4.36687733,1941.7,1941.2,2.88383782]
[1772410565099,1.28753154,1941.7,1941.2,2.88383782]
[1772410565425,1.28753154,1941.7,1941.1,0.0011]
[1772410565426,2.50908814,1941.5,1941.1,0.0011]
[1772410565633,3.07976542,1941.4,1941.1,0.0011]
[1772410566197,3.07976542,1941.3,1940.8,0.0011]
[1772410566540,5.58885356,1941.2,1940.8,0.0011]
[1772410566715,3.07976542,1941.1,1940.8,0.0011]
[1772410566897,1.28799587,1941.0,1940.8,0.0011]
[1772410567406,5.5872718,1940.9,1940.1,1.595]
[1772410567605,2.50908814,1940.9,1940.1,1.595]
[1772410567808,2.50908814,1940.9,1940.0,3.64442012]
[1772410567809,3.07851691,1940.8,1940.2,1.595]
[1772410568009,5.58760505,1940.8,1940.1,1.595]
[1772410568212,2.50908814,1940.8,1940.1,1.595]
[1772410569034,6.25709717,1941.1,1940.2,3.6427848]
[1772410569200,3.07556821,1941.0,1940.4,2.35425785]
[1772410569539,1.28784817,1941.3,1940.4,2.35425785]
[1772410569715,3.07354538,1941.2,1940.4,2.35425785]
[1772410570220,5.34379867,1941.5,1940.4,2.35425785]
[1772410570405,3.07203727,1941.4,1940.4,2.35425785]
[1772410571047,1.28854201,1941.7,1940.8,3.64238645]
[1772410571249,3.07195531,1941.6,1940.8,3.64238645]
[1772410571879,3.07195531,1941.6,1940.9,3.94925785]
[1772410572076,1.28853676,1941.7,1941.0,2.35425785]
[1772410572859,0.001,1941.7,1941.0,2.35425785]
[1772410573044,0.001,1941.7,1941.0,1.28795617]
[1772410573243,0.001,1941.7,1941.0,2.88195617]
[1772410574138,0.001,1941.7,1941.0,5.33026234]
[1772410575854,3.07302222,1941.7,1941.0,5.33026234]
[1772410576951,3.07302222,1941.7,1941.1,1.596]
[1772410577868,3.07302222,1941.7,1941.3,2.34400951]
[1772410577869,0.001,1941.7,1941.3,2.34400951]
[1772410579160,0.001,1941.7,1941.4,1.597]
[1772410579953,0.001,1941.7,1941.5,1.28766417]
[1772410580449,0.001,1941.7,1941.2,0.7011]
[1772410580654,0.001,1941.7,1941.2,1.98891289]
[1772410580863,0.001,1941.7,1941.3,1.599]
[1772410581164,2.50938794,1941.7,1941.2,0.7011]
[1772410581363,2.50938794,1941.7,1941.2,0.0011]
[1772410581881,1.28759785,1941.6,1941.2,0.0011]
[1772410582643,3.79598579,1941.6,1941.2,0.0011]
[1772410586150,3.07618595,1941.5,1941.2,0.0011]
[1772410586455,1.28853533,1941.7,1941.2,0.0011]
[1772410586656,3.0770401,1941.6,1941.2,0.0011]
[1772410586987,5.58542804,1941.6,1941.2,0.0011]
[1772410587283,2.50838794,1941.6,1941.2,0.0011]
[1772410587656,0.001,1941.7,1941.2,0.0011]
[1772410587986,0.001,1941.7,1941.3,1.28779683]
[1772410588287,3.07825999,1941.7,1941.3,1.28779683]
[1772410589489,3.07829637,1941.6,1941.3,1.28779683]
[1772410589663,0.001,1941.7,1941.3,1.28779683]
[1772410589988,0.001,1941.7,1941.2,0.0011]
[1772410590287,3.07929637,1941.7,1941.2,0.0011]
[1772410590781,0.001,1941.7,1941.2,0.0011]
[1772410591389,3.07923375,1941.7,1941.2,1.6001]
[1772410592064,0.001,1941.6,1941.3,1.98779683]
[1772410592954,0.001,1941.6,1941.3,0.7]
[1772410593154,0.001,1941.6,1941.3,1.6]
[1772410593351,0.001,1941.6,1941.2,0.0011]
[1772410593556,0.001,1941.6,1941.2,1.6011]
[1772410593757,0.001,1941.6,1941.2,2.88895742]
[1772410593957,0.001,1941.6,1941.2,1.6011]
[1772410594153,2.50938794,1941.6,1941.2,0.0011]
[1772410594960,0.001,1941.6,1941.2,0.0011]
[1772410596799,0.001,1941.6,1941.4,2.34400951]
[1772410597126,0.001,1941.7,1941.4,2.34400951]
[1772410597496,2.50938794,1941.7,1941.3,0.7]
[1772410597865,0.001,1941.7,1941.3,0.7]
[1772410598563,0.001,1941.7,1941.2,0.0011]
[1772410598564,2.50938794,1941.7,1941.2,0.0011]
[1772410600574,2.50838794,1941.5,1941.2,0.0011]
[1772410600977,1.28857583,1941.7,1941.2,0.0011]
[1772410601295,2.50838794,1941.6,1941.2,0.0011]
[1772410601474,1.28857583,1941.7,1941.2,0.0011]
[1772410601677,3.79696377,1941.7,1941.2,0.0011]
[1772410601864,2.50838794,1941.6,1941.2,0.0011]
[1772410602470,0.001,1941.7,1941.2,0.0011]
[1772410603615,3.79692345,1941.7,1941.2,0.0011]
[1772410604968,3.7969354,1941.7,1941.2,0.0011]
[1772410605374,0.001,1941.6,1941.2,0.0011]
[1772410607500,2.2958725,1941.6,1941.2,0.0011]
[1772410607810,0.001,1941.6,1941.2,0.0011]
[1772410608100,0.001,1941.6,1941.3,2.24783724]
[1772410608509,0.001,1941.6,1941.2,0.0011]
[1772410610916,0.001,1941.6,1941.2,2.24893724]
[1772410611214,0.001,1941.6,1941.3,0.7]
[1772410611386,0.001,1941.6,1941.2,0.0011]
[1772410611788,0.001,1941.6,1941.2,1.6001]
[1772410613490,0.001,1941.6,1941.2,0.0011]
[1772410613690,0.001,1941.6,1941.2,1.6011]
[1772410614790,0.001,1941.6,1941.2,3.84893724]
[1772410614990,0.001,1941.6,1941.3,2.24783724]
[1772410615613,7.44584635,1942.0,1941.4,2.24783724]
[1772410615614,0.00153886,1942.0,1941.4,2.24783724]
[1772410615817,0.00153886,1942.0,1941.5,1.601]
[1772410616023,0.00153886,1942.0,1941.5,3.84883724]
[1772410616489,1.28887327,1942.0,1941.5,2.24783724]
[1772410616818,0.00153886,1942.0,1941.6,1.601]
[1772410617391,0.00153886,1942.0,1941.6,3.84883724]
[1772410617620,0.00153886,1942.0,1941.7,1.28753154]
[1772410618394,0.00153886,1942.0,1941.7,3.53536878]
[1772410618623,0.001,1941.9,1941.7,3.53536878]
[1772410620821,0.001,1941.9,1941.7,3.53536433]
[1772410621348,0.001,1941.9,1941.7,3.5353599]
[1772410621495,2.2958725,1941.9,1941.4,0.7]
[1772410621827,2.2948725,1941.7,1941.3,0.0011]
[1772410623595,2.2948725,1941.7,1941.0,0.0011]
[1772410623596,2.2948725,1941.6,1941.0,0.0011]
[1772410624022,3.58253667,1941.5,1941.0,0.0011]
[1772410627426,2.2948725,1941.4,1941.0,0.0011]
[1772410628894,3.58255621,1941.5,1941.0,0.0011]
[1772410629101,1.28763962,1941.6,1941.0,3.85393724]
[1772410629902,1.28763962,1941.6,1941.1,0.0011]
[1772410630297,3.58351212,1941.6,1941.1,0.0011]
[1772410633955,0.001,1941.6,1941.1,2.22110858]
[1772410635120,0.001,1941.6,1941.2,1.28786317]
[1772410635311,0.001,1941.6,1941.1,7.37271945]
[1772410635312,0.001,1941.6,1941.1,1.28900934]
[1772410635643,0.001,1941.6,1941.1,0.0011]
[1772410635842,0.001,1941.6,1941.1,1.28902092]
[1772410636443,0.001,1941.6,1941.1,3.5090295]
[1772410638443,0.001,1941.6,1941.1,3.82710858]
[1772410638644,2.36500865,1941.6,1941.1,2.8950224]
[1772410639028,0.001,1941.6,1941.1,5.30661739]
[1772410639228,0.001,1941.6,1941.2,2.41159499]
[1772410639420,0.001,1941.9,1941.1,2.8950224]
[1772410639743,2.36500865,1941.9,1941.2,2.41159499]
[1772410641251,1.28746523,1941.8,1941.2,3.69940707]
[1772410641748,1.28746523,1941.8,1941.3,1.607]
[1772410642051,3.65245843,1941.9,1941.3,1.607]
[1772410642266,3.65245843,1941.9,1941.3,4.01859499]
[1772410642421,0.001,1941.5,1941.3,4.01859499]
[1772410643853,0.001,1941.9,1941.5,2.41159499]
[1772410644149,0.001,1941.9,1941.3,5.30634269]
[1772410644150,2.36400865,1941.8,1941.3,5.30634269]
[1772410644650,2.36400865,1941.8,1941.2,0.0011]
[1772410644833,2.36400865,1941.8,1941.2,1.28895378]
[1772410645647,2.36400865,1941.8,1941.2,3.70054877]
[1772410645852,2.36400865,1941.8,1941.3,2.41159499]
[1772410646070,1.28840014,1941.9,1941.4,1.2877305]
[1772410646253,1.28840014,1941.9,1941.3,2.41159499]
[1772410646570,2.36400865,1941.8,1941.2,1.28892689]
[1772410646753,2.36400865,1941.8,1941.2,0.0011]
[1772410647065,2.36400865,1941.8,1941.2,1.28894601]
[1772410647252,2.36400865,1941.8,1941.2,0.0011]
[1772410647633,2.36400865,1941.8,1941.2,3.70055783]
[1772410648060,3.6515252,1941.8,1941.2,3.70055783]
[1772410648640,2.36400865,1941.7,1941.2,2.41269499]
[1772410648841,2.36400865,1941.7,1941.1,1.28901604]
[1772410649083,2.36400865,1941.1,1940.1,3.70014779]
[1772410649262,2.36400865,1941.0,1940.2,2.41269499]
[1772410649946,2.56777103,1940.9,1940.4,2.41159499]
[1772410650159,1.28793982,1941.1,1940.6,2.41159499]
[1772410650465,2.56688176,1941.0,1940.6,2.41159499]
[1772410650870,1.28791141,1941.2,1940.6,2.41159499]
[1772410651041,2.56758302,1941.1,1940.7,0.0011]
[1772410651440,3.65185352,1941.3,1940.7,0.0011]
[1772410651663,2.56752724,1941.2,1940.7,0.0011]
[1772410652058,3.65185352,1941.3,1940.7,0.0011]
[1772410652267,3.85538506,1941.2,1940.7,1.28929498]
[1772410652463,1.555,1941.5,1940.8,2.41159499]
[1772410652464,1.28770167,1941.5,1940.8,2.41159499]
[1772410652667,2.5673284,1941.4,1940.9,4.02259499]
[1772410653139,2.5673284,1941.4,1941.0,2.41269499]
[1772410653341,3.65152091,1941.8,1941.0,2.41269499]
[1772410653568,2.56722672,1941.7,1941.0,2.41269499]
[1772410653776,2.56722672,1941.6,1941.0,2.41269499]
[1772410653976,3.65152091,1941.8,1941.0,2.41269499]
[1772410654189,2.56515632,1941.7,1941.0,2.41269499]
[1772410654485,3.65152091,1941.8,1941.1,3.69952451]
[1772410654486,3.85275417,1941.6,1941.1,3.69952451]
[1772410654665,0.001,1941.5,1941.1,3.69952451]
[1772410655257,0.001,1941.5,1941.1,2.41159499]
[1772410655452,0.001,1941.5,1941.2,0.0011]
[1772410655657,0.001,1941.5,1941.1,0.0011]
[1772410655940,0.001,1941.5,1941.1,2.41269499]
[1772410656573,0.001,1941.5,1941.2,3.69945816]
[1772410657065,0.001,1941.9,1941.3,2.41159499]
[1772410657256,0.001,1941.9,1941.4,4.02359499]
[1772410657770,1.28840943,1941.9,1941.4,4.02359499]
[1772410657957,0.001,1941.9,1941.4,4.02359499]
[1772410658158,1.28840567,1941.9,1941.4,4.02359499]
[1772410658358,0.001,1941.9,1941.4,4.02359499]
[1772410658576,0.001,1941.9,1941.4,5.31130889]
[1772410660275,0.001,1941.9,1941.4,4.02359499]
[1772410660444,0.001,1941.9,1941.4,5.31131792]
[1772410661074,0.001,1941.9,1941.5,2.41269499]
[1772410662880,0.001,1941.9,1941.6,3.69919284]
[1772410663088,0.00153886,1942.0,1941.7,2.41159499]
[1772410663265,0.00153886,1942.0,1941.7,2.41269499]
[1772410664580,0.00153886,1942.0,1941.7,2.41159499]
[1772410665073,0.00153886,1942.0,1941.8,1.28856523]
[1772410665580,0.00153886,1942.0,1941.8,5.31816022]
[1772410665749,0.00153886,1942.0,1941.9,2.41159499]
[1772410667262,0.00153886,1942.0,1941.9,3.69899392]
[1772410667676,0.00153886,1942.0,1941.9,1.28739893]
[1772410668485,2.36500865,1942.4,1941.9,3.58574867]
[1772410668672,1.63510232,1942.7,1942.0,3.7837596]
[1772410668873,0.34818188,1942.7,1942.2,2.29724974]
[1772410669185,0.34818188,1942.7,1942.3,1.28713381]
[1772410669780,0.34818188,1942.7,1942.2,3.58442294]
[1772410670089,0.34818188,1942.7,1942.3,0.0011]
[1772410670286,1.63505086,1942.7,1942.3,0.0011]
[1772410670590,1.63505407,1942.7,1942.3,0.0011]
[1772410670790,3.92148911,1942.7,1942.3,0.0011]
[1772410672276,3.92148911,1942.7,1942.3,1.6241]
[1772410673491,2.28643504,1942.6,1941.8,2.29724974]
[1772410673788,2.28643504,1942.6,1941.9,1.6241]
[1772410674494,2.28643504,1942.6,1942.0,2.29834974]
[1772410674661,1.63505407,1942.7,1942.0,2.29834974]
[1772410674861,2.28643504,1942.6,1942.1,2.29834974]
[1772410675067,2.28643504,1942.6,1942.0,0.0011]
[1772410675591,2.28643504,1942.4,1942.0,0.0011]
[1772410675781,2.28643504,1942.4,1941.4,2.29724974]
[1772410676092,2.28643504,1942.1,1941.4,1.16]
[1772410676889,2.28643504,1942.1,1941.3,2.29724974]
[1772410677772,1.28733264,1942.0,1941.4,1.2877305]
[1772410677985,3.57376768,1942.0,1941.3,3.58500062]
[1772410678484,2.28643504,1941.9,1941.3,2.29724974]
[1772410678799,2.28643504,1941.9,1941.4,1.621]
[1772410679879,0.001,1942.3,1941.6,2.29724974]
[1772410680195,2.28643504,1942.2,1941.6,2.29724974]
[1772410680692,0.001,1942.3,1941.6,2.29724974]
[1772410680909,1.28813883,1942.3,1941.6,2.29724974]
[1772410681112,0.001,1942.3,1941.6,2.29724974]
[1772410681313,2.28743504,1942.3,1941.6,2.29724974]
[1772410681466,2.28743504,1942.3,1941.7,3.91824974]
[1772410681467,0.001,1942.3,1941.7,3.91824974]
[1772410681668,3.57457097,1942.3,1941.7,2.29724974]
[1772410681867,2.28643504,1942.0,1941.6,2.90859122]
[1772410682068,3.57368685,1942.2,1941.6,1.28759122]
[1772410682297,3.57368685,1942.2,1941.5,5.15065001]
[1772410682298,2.28643504,1942.1,1941.5,5.20585029]
[1772410683198,2.28643504,1942.1,1941.5,3.58485029]
[1772410683406,2.28643504,1942.1,1941.4,1.28770639]
[1772410683626,2.28643504,1942.1,1941.3,5.20710441]
[1772410683783,2.28643504,1942.0,1941.3,0.0011]
[1772410684101,2.28643504,1942.0,1941.0,0.00263886]
[1772410684102,2.28643504,1941.6,1941.0,0.00263886]
[1772410685886,3.57406506,1941.6,1941.0,0.00263886]
[1772410686195,3.57406506,1941.6,1941.0,2.2998886]
[1772410686511,2.28643504,1941.6,1941.0,2.2998886]
[1772410686712,1.28757388,1941.7,1941.0,2.2998886]
[1772410686913,1.2875127,1941.8,1941.0,2.2998886]
[1772410687258,8.98810122,1941.9,1941.0,2.2998886]
[1772410687259,2.28643504,1942.1,1941.0,2.2998886]
[1772410687602,2.28643504,1942.1,1941.1,2.32]
[1772410687913,2.28643504,1941.9,1941.2,1.28786317]
[1772410688209,2.28643504,1941.9,1941.2,2.90786317]
[1772410688381,2.28643504,1941.9,1941.2,5.20511291]
[1772410688791,2.28643504,1941.9,1941.2,3.58511291]
[1772410689123,2.28643504,1941.9,1941.2,1.621]
[1772410689493,2.28643504,1941.9,1941.1,1.98790906]
[1772410689723,2.28643504,1941.9,1941.0,5.20884802]
[1772410690220,1.28746523,1941.8,1941.0,3.58784802]
[1772410690408,2.28643504,1941.7,1941.1,2.29724974]
[1772410690794,3.57381554,1942.0,1941.1,2.29724974]
[1772410691717,2.28643504,1941.9,1941.0,2.9106174]
[1772410692520,2.28643504,1941.7,1941.0,2.9106174]
[1772410692916,2.28643504,1941.7,1941.0,5.20786714]
[1772410693422,2.28643504,1941.7,1941.0,3.58786714]
[1772410693724,2.28643504,1941.7,1941.2,0.0011]
[1772410693922,5.14986095,1941.9,1941.2,2.29322502]
[1772410693923,3.40292245,1941.9,1941.2,2.29322502]
[1772410694220,1.28745068,1941.9,1941.2,2.29322502]
[1772410694419,3.40300331,1941.7,1941.2,0.0011]
[1772410694619,2.11547177,1941.6,1941.2,0.0011]
[1772410695502,1.28753154,1941.7,1941.2,0.0011]
[1772410695806,3.40300331,1941.7,1941.2,0.0011]
[1772410696124,2.11547177,1941.6,1941.2,0.0011]
[1772410696328,2.11547177,1941.6,1941.0,0.00263886]
[1772410696525,2.11547177,1941.4,1941.0,0.00263886]
[1772410700133,3.51864277,1941.6,1941.0,2.27516326]
[1772410700631,2.83849541,1941.8,1941.0,2.27516326]
[1772410700818,3.5184324,1941.9,1941.1,1.617]
[1772410701130,2.23100744,1941.8,1941.2,2.2725244]
[1772410704255,3.51847517,1941.8,1941.3,1.28779683]
[1772410704762,1.28745187,1941.9,1941.4,0.7]
[1772410704907,7.38145987,1942.0,1941.5,2.2725244]
[1772410704908,0.001,1942.0,1941.5,2.2725244]
[1772410705496,0.001,1942.0,1941.7,2.2725244]
[1772410706128,0.001,1942.0,1941.8,1.28746523]
[1772410706704,0.001,1942.0,1941.7,3.56004954]
[1772410708926,0.001,1942.0,1941.7,5.17904954]
[1772410711561,0.001,1942.3,1941.8,2.2725244]
[1772410711858,0.001,1942.9,1942.0,2.52725216]
[1772410712079,2.23100744,1943.7,1942.7,2.2725244]
[1772410712080,3.51728033,1943.6,1942.7,2.2725244]
[1772410712275,3.51728033,1943.6,1942.8,3.6745244]
[1772410712566,3.51728033,1943.6,1942.9,1.341]
[1772410713225,3.51728033,1943.6,1942.8,2.2725244]
[1772410713458,3.51728033,1943.6,1942.9,3.1105244]
[1772410713783,0.00153886,1944.0,1943.5,2.2725244]
[1772410714068,1.28547922,1944.8,1943.7,2.2725244]
[1772410714828,1.28693503,1945.0,1944.0,2.2725244]
[1772410715059,1.28693503,1945.0,1944.2,2.2725244]
[1772410715242,1.28693503,1945.0,1944.3,2.2725244]
[1772410715243,1.28689707,1945.0,1944.3,2.2725244]
[1772410715463,0.00153886,1945.0,1944.3,2.2725244]
[1772410715630,0.00153886,1945.0,1944.4,3.55826807]
[1772410715827,0.00153886,1946.0,1944.5,2.2725244]
[1772410715828,1.28625973,1946.0,1944.5,2.2725244]
[1772410716030,1.28625973,1946.0,1944.9,2.2725244]
[1772410716226,2.23100744,1945.9,1944.9,2.2725244]
[1772410716453,2.23100744,1945.8,1945.0,1.619]
[1772410716655,1.28625973,1946.0,1945.1,2.2725244]
[1772410717638,5.48397685,1946.6,1945.5,2.07980485]
[1772410717868,3.86205406,1946.6,1945.6,3.2825244]
[1772410718245,0.34674141,1946.6,1945.7,2.2725244]
[1772410718451,1.63103445,1946.6,1945.7,2.2725244]
[1772410718880,0.34674141,1946.6,1945.7,2.2725244]
[1772410719175,1.28618619,1946.8,1945.9,2.2725244]
[1772410719780,1.28618619,1946.8,1945.9,3.55723895]
[1772410719983,2.23100744,1946.7,1945.7,1.28484807]
[1772410721162,2.23100744,1946.6,1945.7,1.28484807]
[1772410721783,0.002,1947.2,1946.5,2.2725244]
[1772410722144,0.002,1947.2,1946.4,1.615]
[1772410723555,2.23300744,1947.2,1946.0,0.00153886]
[1772410723755,2.23100744,1946.4,1946.0,0.00153886]
[1772410724180,2.07980485,1946.3,1945.2,2.2725244]
[1772410724472,2.07980485,1946.3,1945.3,1.28513083]
[1772410724473,2.23100744,1946.2,1945.3,1.28513083]
[1772410724691,2.23100744,1946.2,1945.2,2.2725244]
[1772410724841,2.23100744,1946.2,1945.2,3.55773797]
[1772410725043,2.23100744,1946.2,1945.3,1.28514173]
[1772410725971,3.51560085,1946.2,1945.6,4.2106223]
[1772410726182,3.51560085,1946.2,1945.6,2.92567733]
[1772410727946,3.51560085,1946.2,1945.6,4.21062182]
[1772410729377,3.51560085,1946.2,1945.6,2.92567733]
[1772410730157,2.17870604,1946.1,1945.6,2.92567733]
[1772410730562,2.18070604,1946.1,1945.6,2.92567733]
[1772410730762,4.25851089,1946.0,1945.1,1.28525176]
[1772410730969,2.17870604,1945.9,1945.1,1.28525176]
[1772410731646,2.17870604,1945.9,1945.0,1.28684906]
[1772410731847,2.17870604,1945.9,1945.0,0.00153886]
[1772410732053,3.46365669,1945.6,1945.0,0.00153886]
[1772410732700,2.17870604,1945.5,1945.0,0.00153886]
[1772410733395,2.17870604,1945.4,1945.0,0.00153886]
[1772410734301,3.46385486,1945.3,1945.0,0.00153886]
[1772410734593,3.46385486,1945.3,1944.5,1.28567755]
[1772410736472,3.46385486,1945.3,1944.3,7.26938493]
[1772410737706,1.28513107,1945.4,1944.4,2.12614759]
[1772410737917,1.28513107,1945.4,1944.4,2.62614759]
[1772410738478,3.46378066,1945.5,1944.5,3.41182514]
[1772410739297,3.46378066,1945.5,1944.6,1.611]
[1772410739505,2.17870604,1945.4,1944.6,1.611]
[1772410740592,1.28514882,1945.3,1944.7,1.28554532]
[1772410741004,3.46383783,1945.4,1944.7,1.28554532]
[1772410742084,3.46383783,1945.4,1944.6,1.28557405]
[1772410742085,2.17870604,1945.3,1944.6,1.28557405]
[1772410742295,2.17870604,1945.1,1944.4,1.28570391]
[1772410742605,2.17870604,1945.1,1944.3,5.14323165]
[1772410742606,1.28534704,1945.0,1944.7,0.001]
[1772410742810,2.17870604,1944.9,1944.5,0.001]
[1772410744198,2.17870604,1944.9,1944.4,0.001]
[1772410744199,2.17870604,1944.8,1944.4,0.001]
[1772410744702,1.28554532,1944.7,1944.4,0.001]
[1772410745506,2.17870604,1944.6,1944.4,0.001]
[1772410745891,1.28528209,1945.1,1944.4,2.12714759]
[1772410747012,2.17870604,1944.8,1944.4,0.001]
[1772410747308,2.17870604,1944.6,1944.0,2.34208072]
[1772410748098,2.17870604,1944.4,1944.0,1e-08]
[1772410749084,3.46450779,1944.4,1944.0,1e-08]
[1772410749923,2.17870604,1944.4,1944.0,1e-08]
[1772410750127,3.46434958,1944.6,1944.0,1e-08]
[1772410750283,2.17870604,1944.6,1944.0,1e-08]
[1772410750634,2.17870604,1944.8,1944.0,2.1261476]
[1772410751223,2.17870604,1944.8,1944.1,1.28594208]
[1772410751224,1.28554532,1944.7,1944.1,1.28594208]
[1772410751624,3.46425136,1944.7,1944.1,1.28594208]
[1772410752012,2.17870604,1944.6,1944.0,1.28596131]
[1772410752812,3.46423767,1944.8,1944.0,1.28596131]
[1772410753236,2.17870604,1944.7,1944.0,1e-08]
[1772410755637,3.50637007,1944.6,1944.0,1e-08]
[1772410755834,3.50637007,1944.6,1944.2,0.001]
[1772410758429,2.22075864,1944.6,1944.2,0.001]
[1772410758627,3.50637007,1944.6,1944.2,0.001]
[1772410758828,2.22075864,1944.6,1944.2,0.001]
[1772410759329,3.5063773,1944.6,1944.2,0.001]
[1772410759752,0.002,1944.8,1944.2,2.15499927]
[1772410760447,0.002,1944.8,1944.4,2.15399927]
[1772410761516,0.002,1944.8,1944.3,1.2858098]
[1772410765043,2.1244541,1944.7,1944.2,0.001]
[1772410766029,2.1244541,1944.7,1944.2,1.28687521]
[1772410767471,1.28561143,1944.6,1944.2,0.001]
[1772410767963,1.28561143,1944.6,1944.0,0.00100001]
[1772410767964,2.1244541,1944.3,1944.0,0.00100001]
[1772410769471,2.1244541,1944.2,1944.0,0.00100001]
[1772410769671,2.1244541,1944.2,1943.4,7.30035412]
[1772410769998,2.1244541,1944.0,1943.4,1.28635485]
[1772410770169,3.41022707,1944.4,1944.3,0.001]
[1772410770464,4.96122707,1944.4,1943.5,2.15399927]
[1772410770768,4.96122707,1944.4,1944.2,0.001]
[1772410770969,4.96122707,1944.4,1943.5,2.15399927]
[1772410771350,4.96122707,1944.4,1944.0,0.001]
[1772410772558,4.96119798,1944.4,1944.0,0.001]
[1772410772762,4.96120756,1944.4,1944.0,0.001]
[1772410773571,3.41020756,1944.4,1944.0,0.001]
[1772410776175,1.28575346,1944.4,1944.0,0.001]
[1772410777957,3.41013165,1944.5,1944.0,0.001]
[1772410779500,2.1244541,1944.4,1944.0,0.001]
[1772410780184,3.4102639,1944.3,1944.0,0.001]
[1772410781894,0.002,1944.6,1944.1,2.15399927]
[1772410782070,0.002,1944.6,1944.2,3.4398752]
[1772410782385,0.002,1944.6,1944.3,2.15399927]
[1772410783873,0.002,1944.4,1944.3,2.15399927]
[1772410784388,0.002,1944.6,1944.4,2.15399927]
[1772410784565,0.002,1944.8,1944.4,2.15399927]
[1772410786390,0.002,1944.8,1944.5,1.28567755]
[1772410787300,0.002,1944.8,1944.4,3.43969192]
[1772410787472,0.002,1944.8,1944.2,7.36614418]
[1772410787669,2.19986607,1944.8,1944.2,7.36614418]
[1772410788187,2.19986607,1944.8,1944.2,5.14332428]
[1772410788497,2.19986607,1944.8,1944.4,1.28574367]
[1772410789199,2.19986607,1944.8,1944.3,3.50857683]
[1772410789885,0.002,1944.9,1944.4,2.2228199]
[1772410790065,0.00153886,1945.0,1944.5,2.2228199]
[1772410790265,5.03889251,1945.5,1944.7,2.2228199]
[1772410790493,5.03889251,1945.5,1944.8,3.50829912]
[1772410792195,3.75386607,1945.5,1944.8,3.50829912]
[1772410792395,5.03888423,1945.5,1944.8,3.50829912]
[1772410793802,2.19786607,1945.5,1944.9,2.2228199]
[1772410793975,3.48289299,1945.5,1944.9,2.2228199]
[1772410794296,2.19786607,1945.4,1944.8,1.28547922]
[1772410794496,3.4829523,1945.4,1944.8,1.28547922]
[1772410794995,3.4829523,1945.4,1944.8,3.50829912]
[1772410795197,3.4829523,1945.4,1944.8,2.2228199]
[1772410795397,2.19786607,1945.3,1944.6,3.50837857]
[1772410796004,2.19786607,1945.1,1944.4,2.2228199]
[1772410796377,1.556,1945.2,1944.4,2.2228199]
[1772410796584,2.19786607,1945.7,1944.8,2.2228199]
[1772410796807,2.19786607,1945.7,1944.9,2.2228199]
[1772410797107,0.002,1945.4,1944.9,2.2228199]
[1772410798588,0.002,1945.4,1945.1,2.2228199]
[1772410798808,0.002,1945.7,1945.0,1.28534704]
[1772410798809,0.002,1945.7,1945.4,2.2228199]
[1772410799009,0.00153886,1946.0,1945.4,2.2228199]
[1772410800510,0.00153886,1946.0,1945.8,2.2228199]
[1772410800715,0.002,1946.4,1946.0,2.2228199]
[1772410800912,1.28399147,1947.1,1946.3,2.2228199]
[1772410801075,3.48379576,1947.2,1946.5,2.2228199]
[1772410801407,1.2839976,1947.1,1946.5,2.2228199]
[1772410801578,1.28400653,1947.1,1946.5,2.2228199]
[1772410801778,1.2855688,1947.0,1946.5,2.2228199]
[1772410802192,2.19786607,1946.9,1946.2,2.2228199]
[1772410802389,1.28556825,1947.0,1946.2,2.2228199]
[1772410802586,0.00153886,1947.0,1946.4,2.2228199]
[1772410803610,2.19940493,1947.0,1945.9,1.28469412]
[1772410803788,2.19786607,1946.7,1945.8,3.50759631]
[1772410804195,2.19786607,1946.7,1945.8,4.00759631]
[1772410804613,3.48215662,1946.6,1945.8,4.00759631]
[1772410805292,5.13654297,1946.9,1945.9,2.2228199]
[1772410805492,1.28560864,1947.0,1946.0,2.07043229]
[1772410805698,1.28560864,1947.0,1946.2,2.2228199]
[1772410805918,1.28560864,1947.0,1946.3,2.2228199]
[1772410806418,1.28560864,1947.0,1946.1,2.53077469]
[1772410806609,1.28560864,1947.0,1946.2,1.605]
[1772410806916,1.28560864,1947.0,1946.1,1.28462052]
[1772410807099,1.28560864,1947.0,1946.1,3.50744042]
[1772410808187,3.35604093,1947.0,1945.9,2.88875255]
[1772410808386,2.19786607,1946.9,1945.9,5.11157245]
[1772410808583,2.19786607,1946.9,1945.9,3.50757245]
[1772410808789,2.19786607,1946.9,1945.8,2.88877743]
[1772410809006,2.19786607,1946.7,1945.8,2.88877743]
[1772410809491,1.28414097,1946.9,1945.9,2.2228199]
[1772410809683,3.48200704,1946.9,1945.9,2.2228199]
[1772410810091,3.48200704,1946.9,1945.9,0.001]